bitfinex-derivatives/quotes_SOLF0:USTF0_20260315
["timestamp","ask_amount","ask_price","bid_price","bid_amount"]
[1773553377444,11.47421956,88.541,88.506,10.46952848]
[1773553378345,11.47421956,88.541,88.507,10.46952848]
[1773553380347,11.47421956,88.541,88.508,10.46952848]
[1773553380650,10.163,88.54,88.508,10.46952848]
[1773553380848,11.47421956,88.539,88.508,10.46952848]
[1773553381342,11.47421956,88.539,88.509,10.46952848]
[1773553381547,11.47421956,88.539,88.508,10.46952848]
[1773553388154,11.47421956,88.539,88.507,10.46952848]
[1773553392163,10.163,88.538,88.507,10.46952848]
[1773553392464,11.47421956,88.537,88.503,10.46952848]
[1773553392860,11.47421956,88.529,88.497,10.46952848]
[1773553393164,11.47421956,88.529,88.491,10.46952848]
[1773553393458,11.47421956,88.529,88.48,13.95937131]
[1773553393459,11.47421956,88.529,88.49,10.46952848]
[1773553394664,11.47421956,88.519,88.49,10.46952848]
[1773553395260,11.47421956,88.519,88.489,10.46952848]
[1773553396264,11.47421956,88.519,88.488,10.46952848]
[1773553398265,11.47421956,88.519,88.487,10.46952848]
[1773553400368,11.47421956,88.517,88.486,10.46952848]
[1773553400569,11.47421956,88.517,88.478,9.8443661]
[1773553400570,11.47421956,88.517,88.482,10.46952848]
[1773553400770,11.47421956,88.517,88.482,20.57256293]
[1773553400965,11.47421956,88.517,88.483,10.10266313]
[1773553401670,10.166,88.516,88.483,10.10266313]
[1773553406471,11.47421956,88.517,88.483,10.10266313]
[1773553409072,12.23359743,88.514,88.483,10.10266313]
[1773553415382,12.23359743,88.514,88.483,20.57575306]
[1773553416279,12.23359743,88.514,88.484,10.47308993]
[1773553418283,12.23359743,88.514,88.485,10.47308993]
[1773553419382,12.23359743,88.512,88.485,10.47308993]
[1773553419577,12.23359743,88.512,88.477,10.47308993]
[1773553420680,12.23359743,88.503,88.477,10.47308993]
[1773553421284,12.23359743,88.499,88.473,10.47308993]
[1773553421485,12.23359743,88.499,88.461,10.15235535]
[1773553421486,12.23359743,88.499,88.469,10.47308993]
[1773553422289,12.23359743,88.499,88.468,10.47308993]
[1773553423490,12.23359743,88.499,88.464,10.47308993]
[1773553423992,12.23359743,88.499,88.465,10.47308993]
[1773553424186,12.23359743,88.499,88.464,10.47308993]
[1773553424791,12.23359743,88.499,88.47,10.47308993]
[1773553425390,12.23359743,88.499,88.469,10.47308993]
[1773553426091,12.23359743,88.499,88.47,10.47308993]
[1773553426292,12.23359743,88.499,88.469,10.47308993]
[1773553426586,12.23359743,88.488,88.469,8.993e-05]
[1773553426788,12.23359743,88.488,88.449,10.07328208]
[1773553426992,12.23359743,88.488,88.448,13.95937131]
[1773553426993,12.23359743,88.488,88.45,10.07743175]
[1773553427192,12.23359743,88.488,88.451,10.07743175]
[1773553428290,12.23359743,88.488,88.45,3.06170825]
[1773553428497,12.23359743,88.488,88.446,10.00699646]
[1773553429383,12.23359743,88.488,88.451,9.99474649]
[1773553440800,11.9891213,88.487,88.439,24.02439624]
[1773553440995,11.9891213,88.487,88.433,13.95937131]
[1773553441195,11.9891213,88.487,88.432,13.95937131]
[1773553441400,11.9891213,88.487,88.433,24.02766194]
[1773553441599,11.9891213,88.487,88.434,10.06829063]
[1773553442505,11.9891213,88.476,88.434,10.06829063]
[1773553444605,10.171,88.474,88.434,10.06829063]
[1773553445204,22.1601213,88.474,88.434,10.06829063]
[1773553445800,11.9891213,88.473,88.434,10.06829063]
[1773553448103,10.172,88.461,88.434,10.06829063]
[1773553448405,11.9891213,88.473,88.42,24.00474829]
[1773553448406,11.9891213,88.473,88.424,10.02606681]
[1773553448606,11.9891213,88.466,88.424,10.02606681]
[1773553454310,11.9891213,88.455,88.421,9.96601301]
[1773553456307,11.9891213,88.455,88.411,9.92006466]
[1773553456610,11.9891213,88.455,88.405,10.178]
[1773553456808,11.9891213,88.455,88.405,20.09806466]
[1773553457009,11.9891213,88.451,88.405,9.92006466]
[1773553457608,11.9891213,88.449,88.405,9.92006466]
[1773553460115,11.9891213,88.449,88.411,9.96821492]
[1773553461911,11.9891213,88.449,88.41,3.06569133]
[1773553462117,11.9891213,88.449,88.401,10.01666974]
[1773553462619,11.9891213,88.449,88.404,10.01666974]
[1773553462814,3.06569133,88.46,88.411,10.01666974]
[1773553463112,11.5458793,88.461,88.411,10.01666974]
[1773553467220,11.5458793,88.461,88.42,3.06569133]
[1773553467430,11.5458793,88.461,88.421,9.96738275]
[1773553479034,35.6,88.463,88.431,10.08167769]
[1773553479228,35.6,88.483,88.441,10.08167769]
[1773553479435,35.6,88.483,88.451,10.08167769]
[1773553484332,11.5458793,88.482,88.451,10.08167769]
[1773553484841,11.5458793,88.482,88.436,13.95937131]
[1773553485033,11.5458793,88.482,88.434,13.95937131]
[1773553485633,11.5458793,88.477,88.434,13.95937131]
[1773553486638,11.5458793,88.477,88.445,10.49366846]
[1773553494741,11.5458793,88.477,88.447,10.49366846]
[1773553495041,11.5458793,88.477,88.446,10.49366846]
[1773553496840,11.5458793,88.477,88.445,10.49366846]
[1773553497040,11.5458793,88.477,88.437,9.77152883]
[1773553497041,11.5458793,88.477,88.446,10.49366846]
[1773553498444,11.5458793,88.477,88.445,10.49366846]
[1773553498647,11.5458793,88.477,88.446,10.49366846]
[1773553499246,11.5458793,88.477,88.445,10.49366846]
[1773553500349,12.2209748,88.473,88.443,10.49366846]
[1773553500549,12.2209748,88.473,88.443,10.50105695]
[1773553500746,12.2209748,88.469,88.428,13.95937131]
[1773553501054,12.2209748,88.469,88.419,13.95937131]
[1773553501249,12.2209748,88.459,88.418,13.95937131]
[1773553501746,12.2209748,88.457,88.418,13.95937131]
[1773553503151,12.2209748,88.457,88.419,13.95937131]
[1773553503350,3.1009748,88.457,88.419,13.95937131]
[1773553503751,3.1009748,88.457,88.419,26.37196242]
[1773553505253,3.1009748,88.457,88.42,13.95937131]
[1773553505850,3.1009748,88.457,88.42,26.37196242]
[1773553506452,35.58,88.458,88.421,12.41259111]
[1773553506652,35.58,88.458,88.425,12.41259111]
[1773553507151,35.58,88.458,88.431,12.41259111]
[1773553507850,12.2209748,88.457,88.425,13.95937131]
[1773553508147,12.2209748,88.457,88.421,13.95937131]
[1773553508350,12.2209748,88.457,88.421,26.37196242]
[1773553508746,12.2209748,88.457,88.421,12.41259111]
[1773553513961,35.58,88.458,88.421,12.41259111]
[1773553514158,35.58,88.458,88.422,12.41259111]
[1773553518564,35.58,88.458,88.423,10.176]
[1773553518758,35.58,88.458,88.431,12.41259111]
[1773553529368,35.58,88.458,88.431,26.37196242]
[1773553533172,35.58,88.458,88.432,13.95937131]
[1773553537074,35.58,88.458,88.433,13.95937131]
[1773553540080,35.58,88.458,88.434,13.95937131]
[1773553541685,35.58,88.458,88.435,13.95937131]
[1773553541883,48.09204103,88.458,88.434,13.95937131]
[1773553542076,48.09204103,88.458,88.435,13.95937131]
[1773553543084,48.09204103,88.458,88.436,13.95937131]
[1773553544984,48.09204103,88.458,88.437,13.95937131]
[1773553545986,48.09204103,88.458,88.436,13.95937131]
[1773553556265,48.09204103,88.458,88.437,13.95937131]
[1773553561204,48.09204103,88.458,88.438,13.95937131]
[1773553564102,12.94421123,88.479,88.448,13.95937131]
[1773553564503,12.94421123,88.479,88.442,13.95937131]
[1773553565506,12.94421123,88.476,88.442,13.95937131]
[1773553566501,10.171,88.473,88.442,13.95937131]
[1773553566705,12.94421123,88.472,88.442,13.95937131]
[1773553571508,12.94421123,88.466,88.442,0.00037131]
[1773553571708,12.94421123,88.466,88.425,20.93905696]
[1773553572414,12.94421123,88.466,88.421,20.93905696]
[1773553572710,38.6660076,88.48,88.421,20.93905696]
[1773553572711,12.94421123,88.461,88.421,20.93905696]
[1773553574412,12.94421123,88.461,88.42,33.0625625]
[1773553575514,12.94421123,88.461,88.42,12.12350554]
[1773553576619,12.94421123,88.458,88.42,12.12350554]
[1773553580622,12.94421123,88.458,88.421,12.12350554]
[1773553584525,12.80327359,88.472,88.431,12.34532585]
[1773553585723,45.77,88.48,88.441,12.34532585]
[1773553586422,58.57327359,88.48,88.441,12.34532585]
[1773553587823,45.77,88.48,88.441,12.34532585]
[1773553588225,12.80327359,88.479,88.441,12.34532585]
[1773553593929,12.80327359,88.479,88.431,10.175]
[1773553594129,12.80327359,88.479,88.432,12.34532585]
[1773553595732,10.17,88.478,88.432,12.34532585]
[1773553595926,12.80327359,88.477,88.432,12.34532585]
[1773553597233,12.80327359,88.466,88.422,12.34532585]
[1773553597730,35.6,88.48,88.407,20.93905696]
[1773553597731,12.80327359,88.459,88.407,20.93905696]
[1773553597939,12.80327359,88.459,88.405,12.34532585]
[1773553598536,12.80327359,88.447,88.405,12.34532585]
[1773553599637,12.80327359,88.444,88.405,12.34532585]
[1773553601739,12.80327359,88.444,88.407,14.0158645]
[1773553603242,12.80327359,88.444,88.406,14.0158645]
[1773553605243,12.80327359,88.444,88.405,26.36119035]
[1773553606540,35.6,88.447,88.394,20.93905696]
[1773553606541,12.80327359,88.439,88.395,14.0158645]
[1773553607138,12.80327359,88.439,88.396,12.34532585]
[1773553608645,12.80327359,88.439,88.382,20.93905696]
[1773553608646,12.80327359,88.446,88.4,15.41133345]
[1773553608847,12.80327359,88.446,88.402,12.34532585]
[1773553609751,35.6,88.447,88.411,12.34532585]
[1773553616953,35.6,88.447,88.412,10.177]
[1773553617653,35.6,88.447,88.413,12.77033574]
[1773553620249,12.15166125,88.446,88.4,3.0660076]
[1773553620461,12.15166125,88.446,88.401,12.77033574]
[1773553621153,12.15166125,88.446,88.403,12.77033574]
[1773553621755,12.15166125,88.446,88.405,12.77033574]
[1773553622554,12.15166125,88.446,88.408,12.77033574]
[1773553623155,12.15166125,88.446,88.409,10.178]
[1773553623355,35.6,88.447,88.41,12.77033574]
[1773553624259,35.6,88.447,88.42,12.77033574]
[1773553626455,12.15166125,88.429,88.391,13.98979934]
[1773553626754,12.15166125,88.429,88.39,12.77033574]
[1773553630561,12.15166125,88.429,88.393,12.77033574]
[1773553632756,12.15166125,88.429,88.379,12.77033574]
[1773553635266,15.21872272,88.44,88.381,12.77033574]
[1773553635467,12.15166125,88.439,88.381,12.77033574]
[1773553636267,12.15166125,88.439,88.391,12.77033574]
[1773553636767,12.15166125,88.439,88.394,10.18]
[1773553639966,12.15166125,88.439,88.394,22.95033574]
[1773553644569,12.97451435,88.438,88.394,12.77033574]
[1773553644769,12.97451435,88.438,88.384,10.181]
[1773553644770,12.97451435,88.438,88.384,23.35496101]
[1773553646170,12.97451435,88.438,88.385,13.17396101]
[1773553647271,12.97451435,88.438,88.386,10.181]
[1773553648474,12.97451435,88.438,88.386,23.35496101]
[1773553648670,12.97451435,88.438,88.387,13.17396101]
[1773553658786,12.97451435,88.438,88.391,10.18]
[1773553658988,12.97451435,88.438,88.392,13.17396101]
[1773553660285,12.97451435,88.438,88.393,13.17396101]
[1773553663390,12.97451435,88.436,88.393,13.17396101]
[1773553667099,12.97451435,88.436,88.393,27.20861332]
[1773553668395,12.97451435,88.436,88.394,14.03465231]
[1773553669197,12.97451435,88.436,88.395,14.03465231]
[1773553669594,12.97451435,88.436,88.394,14.03465231]
[1773553669898,12.97451435,88.436,88.395,14.03465231]
[1773553670098,12.97451435,88.436,88.396,14.03465231]
[1773553670699,12.8828701,88.433,88.396,14.03465231]
[1773553671195,12.8828701,88.433,88.399,14.03465231]
[1773553671899,12.8828701,88.433,88.398,14.03465231]
[1773553672897,12.8828701,88.433,88.393,13.17396101]
[1773553672898,12.8828701,88.433,88.399,14.03465231]
[1773553673899,12.8828701,88.433,88.393,13.17396101]
[1773553673900,12.8828701,88.433,88.398,14.03465231]
[1773553674602,12.8828701,88.433,88.399,14.03465231]
[1773553674795,12.8828701,88.433,88.398,14.03465231]
[1773553675398,12.8828701,88.433,88.399,14.03465231]
[1773553677503,12.8828701,88.433,88.398,14.03465231]
[1773553677800,12.8828701,88.433,88.399,14.03465231]
[1773553679703,12.8828701,88.433,88.4,26.86214317]
[1773553680205,12.8828701,88.433,88.401,12.82749086]
[1773553680597,35.6,88.447,88.405,12.82749086]
[1773553680803,35.6,88.459,88.419,12.82749086]
[1773553681004,13.03281509,88.458,88.42,12.82749086]
[1773553682612,13.03281509,88.456,88.42,12.82749086]
[1773553682810,35.6,88.459,88.42,15.89455233]
[1773553683011,35.6,88.459,88.427,12.82749086]
[1773553690323,35.6,88.459,88.431,12.82749086]
[1773553698426,35.6,88.484,88.441,12.82749086]
[1773553698626,35.6,88.483,88.441,12.82749086]
[1773553703328,11.93229702,88.498,88.461,12.03967921]
[1773553705524,35.6,88.502,88.471,12.03967921]
[1773553708331,11.93229702,88.501,88.461,12.03967921]
[1773553715332,11.93229702,88.501,88.471,12.03967921]
[1773553722943,11.93229702,88.501,88.462,10.172]
[1773553723144,11.93229702,88.501,88.467,12.03967921]
[1773553728052,11.93229702,88.491,88.455,12.03967921]
[1773553728259,11.93229702,88.491,88.444,12.03967921]
[1773553728549,11.93229702,88.479,88.433,12.03967921]
[1773553728761,11.93229702,88.468,88.433,12.03967921]
[1773553730457,11.93229702,88.468,88.398,35.58]
[1773553730458,11.93229702,88.468,88.331,11.31]
[1773553730652,158.149,88.511,88.242,48.85779959]
[1773553730653,35.58,88.467,88.361,62.8323249]
[1773553730853,35.58,88.466,88.361,62.8323249]
[1773553731151,3.06608936,88.42,88.361,62.8323249]
[1773553731350,35.58,88.419,88.361,62.8323249]
[1773553731553,35.58,88.418,88.361,62.8323249]
[1773553731746,35.58,88.417,88.361,62.8323249]
[1773553733451,35.58,88.417,88.371,63.31387061]
[1773553735157,35.58,88.417,88.381,63.44147557]
[1773553735360,35.58,88.417,88.39,3.06608936]
[1773553735662,33.93803161,88.417,88.391,63.44147557]
[1773553735960,29.25003162,88.417,88.4,3.06608936]
[1773553736552,35.6,88.441,88.4,3.06608936]
[1773553737158,35.6,88.441,88.4,66.69308763]
[1773553738660,35.6,88.441,88.42,3.06608936]
[1773553739459,35.6,88.468,88.43,3.06608936]
[1773553740761,10.171,88.467,88.43,3.06608936]
[1773553741357,10.171,88.467,88.42,66.68174063]
[1773553747056,10.172,88.458,88.42,63.61565127]
[1773553747664,10.172,88.458,88.42,66.68225583]
[1773553750864,10.172,88.458,88.42,63.61565127]
[1773553753869,10.172,88.458,88.42,66.68225583]
[1773553757472,10.173,88.449,88.42,66.68225583]
[1773553761673,10.173,88.449,88.42,63.61565127]
[1773553766672,10.173,88.449,88.43,3.06660456]
[1773553766976,10.173,88.449,88.42,66.68225583]
[1773553767177,10.176,88.429,88.41,3.06660456]
[1773553767373,10.176,88.429,88.409,63.75934681]
[1773553768674,9.06743327,88.467,88.42,3.06660456]
[1773553768877,35.6,88.468,88.421,63.73174404]
[1773553769577,10.173,88.453,88.421,63.73174404]
[1773553770680,3.06660456,88.46,88.4,3.06660456]
[1773553771374,10.174,88.439,88.41,3.06660456]
[1773553772679,10.174,88.439,88.411,55.22464528]
[1773553775686,35.6,88.468,88.391,55.23154268]
[1773553775687,3.06660456,88.45,88.391,55.23154268]
[1773553775885,35.6,88.468,88.391,55.23154268]
[1773553775886,3.06660456,88.44,88.391,55.23154268]
[1773553776076,9.10689449,88.439,88.391,55.23154268]
[1773553776282,10.177,88.413,88.391,55.23154268]
[1773553777078,10.177,88.413,88.371,55.22434876]
[1773553777280,10.177,88.413,88.381,55.22434876]
[1773553779885,35.6,88.423,88.314,1.96867098]
[1773553779886,3.06660456,88.41,88.314,1.96867098]
[1773553780083,9.11855442,88.409,88.36,3.06660456]
[1773553780280,9.11855442,88.408,88.36,3.06660456]
[1773553780484,9.11855442,88.407,88.36,3.06660456]
[1773553780685,9.11855442,88.406,88.36,3.06660456]
[1773553780885,3.06660456,88.42,88.36,3.06660456]
[1773553781185,9.11934578,88.419,88.36,3.06660456]
[1773553781386,9.11934578,88.418,88.36,3.06660456]
[1773553781685,10.179,88.404,88.36,3.06660456]
[1773553781889,10.179,88.404,88.361,46.55942501]
[1773553785085,9.10213595,88.415,88.329,35.6]
[1773553785287,3.06660456,88.39,88.341,46.54839226]
[1773553785490,3.06660456,88.41,88.351,46.54839226]
[1773553785691,10.178,88.405,88.361,46.54839226]
[1773553790297,10.177,88.415,88.361,46.54839226]
[1773553791298,10.177,88.415,88.371,46.57431838]
[1773553793304,10.177,88.415,88.381,46.58876911]
[1773553795597,10.178,88.407,88.381,46.58876911]
[1773553796007,3.06660456,88.41,88.35,3.06660456]
[1773553796202,3.06660456,88.41,88.351,46.58894593]
[1773553797503,10.179,88.4,88.351,46.58894593]
[1773553799411,35.6,88.423,88.32,3.06660456]
[1773553799412,3.06660456,88.37,88.32,3.06660456]
[1773553799607,8.50192127,88.422,88.32,3.06660456]
[1773553799608,3.06660456,88.38,88.32,3.06660456]
[1773553799810,3.06660456,88.39,88.33,3.06660456]
[1773553801310,3.06660456,88.38,88.331,37.73126776]
[1773553801609,10.182,88.378,88.331,37.73126776]
[1773553817024,3.07286566,88.39,88.308,35.6]
[1773553817025,3.07286566,88.39,88.34,3.07286566]
[1773553817226,3.07286566,88.41,88.351,37.83908985]
[1773553818526,10.179,88.396,88.351,37.83908985]
[1773553820321,10.18,88.387,88.351,37.83908985]
[1773553822030,10.12838241,88.387,88.351,37.83908985]
[1773553822831,10.179,88.396,88.351,37.83908985]
[1773553825934,3.07286566,88.42,88.361,37.80085518]
[1773553826133,3.07286566,88.42,88.309,33.93]
[1773553826134,35.6,88.423,88.371,37.80085518]
[1773553826535,10.177,88.414,88.371,37.80085518]
[1773553857061,3.07286566,88.4,88.35,37.81328086]
[1773553858668,10.18,88.391,88.35,37.81328086]
[1773553859370,10.18,88.391,88.35,40.88614652]
[1773553860171,10.18,88.391,88.35,37.81328086]
[1773553860664,10.181,88.383,88.35,37.81328086]
[1773553863775,3.07286566,88.38,88.329,37.85055597]
[1773553863971,3.07286566,88.37,88.329,37.85055597]
[1773553864171,35.6,88.381,88.329,37.85055597]
[1773553864377,3.07286566,88.37,88.329,37.85055597]
[1773553865375,3.07286566,88.38,88.329,37.85055597]
[1773553865578,10.183,88.367,88.329,37.85055597]
[1773553866775,10.184,88.357,88.329,37.85055597]
[1773553867077,35.6,88.381,88.329,37.85055597]
[1773553867280,3.07286566,88.38,88.329,37.85055597]
[1773553868680,10.183,88.368,88.329,37.85055597]
[1773553868877,3.07286566,88.36,88.315,37.88261731]
[1773553869572,3.07419733,88.36,88.315,37.88261731]
[1773553869875,10.184,88.359,88.315,37.88261731]
[1773553870576,3.07419733,88.36,88.315,37.88261731]
[1773553870577,10.185,88.349,88.315,37.88261731]
[1773553873883,10.183,88.361,88.315,37.88261731]
[1773553874476,10.183,88.361,88.321,37.8707327]
[1773553877684,35.6,88.381,88.341,37.87934742]
[1773553878488,3.07419733,88.38,88.341,37.87934742]
[1773553878784,10.183,88.368,88.341,37.87934742]
[1773553881993,35.6,88.381,88.341,37.87934742]
[1773553882286,10.182,88.378,88.341,37.87934742]
[1773553884282,10.183,88.369,88.305,37.89428284]
[1773553884488,3.07419733,88.38,88.321,37.89428284]
[1773553885690,10.184,88.36,88.321,37.89428284]
[1773553886292,10.183,88.37,88.321,37.89428284]
[1773553886887,10.183,88.37,88.331,37.90127388]
[1773553887089,10.181,88.38,88.331,37.90127388]
[1773553888590,10.182,88.372,88.331,37.90127388]
[1773553897689,35.6,88.381,88.331,37.90127388]
[1773553898001,35.6,88.395,88.351,37.90893556]
[1773553898300,35.6,88.394,88.351,37.90893556]
[1773553898495,35.6,88.394,88.287,33.93]
[1773553898496,35.6,88.394,88.361,37.90959538]
[1773553899196,10.178,88.41,88.361,37.90959538]
[1773553900092,10.178,88.41,88.371,20.12651604]
[1773553909901,10.179,88.402,88.371,20.12651604]
[1773553911203,3.07419733,88.4,88.34,3.07419733]
[1773553911407,3.07419733,88.39,88.33,3.07419733]
[1773553912605,10.182,88.373,88.33,3.07419733]
[1773553913005,8.61519736,88.41,88.3,35.6]
[1773553913006,35.6,88.377,88.32,3.07419733]
[1773553913314,35.6,88.377,88.321,11.57509314]
[1773553914605,10.182,88.372,88.321,11.57509314]
[1773553915302,10.182,88.372,88.331,11.58406137]
[1773553920909,10.184,88.359,88.299,11.62347843]
[1773553921115,10.184,88.359,88.301,11.62347843]
[1773553923519,10.185,88.349,88.301,11.62347843]
[1773553925019,13.25819733,88.36,88.301,11.62347843]
[1773553925415,8.62688626,88.376,88.301,11.62347843]
[1773553925615,10.185,88.349,88.301,11.62347843]
[1773553929417,3.07419733,88.34,88.288,11.67380654]
[1773553930319,10.185,88.345,88.301,11.67406858]
[1773553930819,10.184,88.357,88.311,11.67406858]
[1773553940538,10.185,88.348,88.311,11.67406858]
[1773553945242,10.184,88.357,88.311,11.67406858]
[1773553948449,3.07424499,88.34,88.286,11.65034812]
[1773553949342,10.186,88.339,88.286,11.65034812]
[1773553949551,10.186,88.339,88.291,11.65031902]
[1773553953445,10.187,88.327,88.291,11.65031902]
[1773553954243,3.07424499,88.35,88.291,11.65031902]
[1773553954446,8.6211363,88.365,88.291,11.65031902]
[1773553954752,3.07424499,88.34,88.291,11.65031902]
[1773553955550,13.26024499,88.34,88.291,11.65031902]
[1773553958655,10.187,88.331,88.291,11.65031902]
[1773553961655,10.186,88.34,88.291,11.65031902]
[1773553967665,3.07424499,88.33,88.279,11.66648491]
[1773553967864,8.6211363,88.348,88.291,11.66648491]
[1773553968063,3.07424499,88.35,88.291,11.66648491]
[1773553968362,8.6211363,88.349,88.291,11.66648491]
[1773553969467,10.185,88.347,88.291,11.66648491]
[1773553973262,10.186,88.339,88.291,11.66648491]
[1773553975362,10.185,88.348,88.291,11.66648491]
[1773553975667,10.185,88.348,88.301,11.66798505]
[1773553976663,35.62,88.369,88.301,11.66798505]
[1773553976664,10.186,88.34,88.301,11.66798505]
[1773553978163,3.07424499,88.35,88.301,11.66798505]
[1773553978164,10.185,88.35,88.301,11.66798505]
[1773553982173,35.62,88.369,88.281,11.66026241]
[1773553982174,3.07424499,88.33,88.281,11.66026241]
[1773553983674,3.07424499,88.32,88.281,11.66026241]
[1773553984175,10.188,88.324,88.281,11.66026241]
[1773553984374,3.07424499,88.32,88.281,11.66026241]
[1773553985376,3.07424499,88.33,88.281,11.66026241]
[1773553988676,10.187,88.333,88.281,11.66026241]
[1773553990982,10.188,88.326,88.281,11.66026241]
[1773553991184,3.07424499,88.32,88.263,11.65112967]
[1773553992578,10.189,88.317,88.263,11.65112967]
[1773553993380,10.189,88.309,88.263,11.65112967]
[1773553997091,3.07747218,88.32,88.256,20.97500794]
[1773553997092,10.189,88.318,88.271,11.64865238]
[1773554000295,10.189,88.311,88.271,11.64865238]
[1773554005000,10.19,88.307,88.271,11.64865238]
[1773554006716,10.19,88.307,88.233,35.62]
[1773554006717,8.62746958,88.341,88.243,20.97500794]
[1773554007007,3.07747218,88.31,88.25,3.07747218]
[1773554008606,10.192,88.291,88.24,3.07747218]
[1773554008807,10.192,88.291,88.241,5.82401614]
[1773554010109,10.192,88.291,88.251,5.77926375]
[1773554022309,10.193,88.282,88.241,5.78198948]
[1773554023010,3.07747218,88.29,88.241,5.78198948]
[1773554024614,10.192,88.288,88.241,5.78198948]
[1773554025519,10.191,88.296,88.251,5.78826692]
[1773554026519,3.07747218,88.31,88.251,5.78826692]
[1773554027322,10.19,88.303,88.254,5.79064942]
[1773554032019,10.191,88.296,88.254,5.79064942]
[1773554038635,10.19,88.306,88.261,5.79374693]
[1773554041633,10.189,88.314,88.27,3.07747218]
[1773554041835,10.189,88.314,88.271,5.79815842]
[1773554042540,10.19,88.306,88.26,3.07747218]
[1773554042737,10.19,88.306,88.261,5.79998864]
[1773554044635,8.61058513,88.333,88.288,5.80552192]
[1773554044841,8.61113009,88.346,88.29,3.07747218]
[1773554045134,8.61113009,88.349,88.281,5.80552192]
[1773554045340,3.07747218,88.34,88.281,5.80552192]
[1773554046234,8.61113009,88.362,88.301,5.8324159]
[1773554046438,3.07747218,88.36,88.301,5.8324159]
[1773554048539,10.184,88.356,88.301,5.8324159]
[1773554049339,8.61113009,88.368,88.311,5.87182505]
[1773554049539,3.07747218,88.38,88.321,5.87182505]
[1773554050243,3.07747218,88.38,88.33,3.07747218]
[1773554050637,3.07747218,88.39,88.331,5.87236487]
[1773554051143,3.07747218,88.38,88.331,5.87236487]
[1773554051532,13.25847218,88.38,88.331,5.87236487]
[1773554051733,10.181,88.38,88.331,5.87236487]
[1773554051931,10.181,88.38,88.34,3.07747218]
[1773554053342,10.18,88.392,88.351,5.89727974]
[1773554054241,10.181,88.383,88.322,5.90626876]
[1773554054546,35.62,88.424,88.322,5.90626876]
[1773554054547,3.07747218,88.37,88.322,5.90626876]
[1773554054745,3.07747218,88.36,88.31,8.98374094]
[1773554055042,3.07747218,88.36,88.301,5.90626876]
[1773554055637,3.07413666,88.36,88.31,8.98032563]
[1773554056241,10.184,88.353,88.31,8.98032563]
[1773554057344,10.184,88.353,88.311,5.89237259]
[1773554057947,10.183,88.362,88.32,3.07413666]
[1773554058546,10.183,88.362,88.321,5.89239186]
[1773554073354,35.62,88.375,88.321,5.89239186]
[1773554074463,3.07413666,88.37,88.321,5.89239186]
[1773554074661,10.183,88.364,88.321,5.89239186]
[1773554075964,10.183,88.364,88.259,69.59]
[1773554075965,35.62,88.375,88.341,5.90600754]
[1773554076560,35.62,88.401,88.37,3.07413666]
[1773554076759,35.62,88.412,88.37,3.07413666]
[1773554076966,35.62,88.414,88.37,3.07413666]
[1773554077164,35.62,88.414,88.361,5.9046489]
[1773554077656,10.179,88.403,88.361,5.9046489]
[1773554078665,10.178,88.412,88.361,5.9046489]
[1773554081071,35.62,88.414,88.381,5.92816084]
[1773554081962,35.62,88.44,88.4,3.07413666]
[1773554082166,10.27654165,88.439,88.4,3.07413666]
[1773554082768,10.27654165,88.439,88.39,3.07413666]
[1773554085674,10.30015686,88.437,88.39,3.07413666]
[1773554086676,10.30765432,88.429,88.37,3.07413666]
[1773554087575,10.30585942,88.423,88.37,3.07413666]
[1773554088678,10.30588563,88.416,88.36,3.07413666]
[1773554088873,10.30588563,88.409,88.35,3.07413666]
[1773554089967,10.18,88.391,88.35,3.07413666]
[1773554090169,10.27390868,88.379,88.32,3.07413666]
[1773554090571,10.27764796,88.372,88.32,3.07413666]
[1773554091271,10.27764796,88.372,88.314,10.189]
[1773554091479,10.27764796,88.372,88.32,3.07413666]
[1773554091973,10.28203968,88.348,88.292,20.97500794]
[1773554092171,10.28203968,88.348,88.3,3.07413666]
[1773554092771,10.28203968,88.348,88.31,3.07413666]
[1773554092971,10.23746711,88.369,88.31,3.07413666]
[1773554093875,10.23746711,88.369,88.33,3.07413666]
[1773554094272,10.28268385,88.389,88.33,3.07413666]
[1773554094482,10.28268385,88.389,88.34,3.07413666]
[1773554094874,10.28268385,88.389,88.35,3.07413666]
[1773554095074,35.62,88.395,88.35,3.07413666]
[1773554095675,10.27508863,88.437,88.36,3.07413666]
[1773554095877,3.07413666,88.42,88.36,3.07413666]
[1773554096072,10.27508863,88.419,88.36,3.07413666]
[1773554096277,10.27508863,88.419,88.37,3.07413666]